[Event "Paris GCT Rapid"]
[Site "Paris"]
[Date "2017.06.22"]
[Round "5"]
[White "Vachier Lagrave, Maxime"]
[Black "So, Wesley"]
[Result "1/2-1/2"]
[ECO "C67"]
[WhiteElo "2796"]
[BlackElo "2812"]
[PlyCount "117"]
[EventDate "2017.06.21"]
[EventType "tourn (rapid)"]
[EventRounds "9"]
[EventCountry "FRA"]
[EventCategory "22"]
[SourceTitle "CBM 179"]
[Source "ChessBase"]
[SourceDate "2017.07.12"]
[SourceVersion "1"]
[SourceVersionDate "2017.07.12"]
[SourceQuality "1"]
[TimeControl "1500"]

1. e4 {[%emt 0:00:00]} e5 {[%emt 0:00:00]} 2. Nf3 {[%emt 0:00:00]} Nc6 {
[%emt 0:00:00]} 3. Bb5 {[%emt 0:00:00]} Nf6 {[%emt 0:00:00]} 4. O-O {[%emt 0:
00:00]} Nxe4 {[%emt 0:00:00]} 5. d4 {[%emt 0:00:00]} Nd6 {[%emt 0:00:00]} 6.
Bxc6 {[%emt 0:00:00]} dxc6 {[%emt 0:00:00]} 7. dxe5 {[%emt 0:00:00]} Nf5 {
[%emt 0:00:00]} 8. Qxd8+ {[%emt 0:00:00]} Kxd8 {[%emt 0:00:00]} 9. Rd1+ {
[%emt 0:00:00]} Ke8 {[%emt 0:00:00]} 10. Nc3 {[%emt 0:00:00]} Be7 {[%emt 0:00:
00]} 11. Ne2 {[%emt 0:00:24]} Nh4 {[%emt 0:00:09]} 12. Nxh4 {[%emt 0:00:13]}
Bxh4 {[%emt 0:00:00]} 13. Be3 {[%emt 0:00:00]} Be7 {[%emt 0:00:00]} 14. a4 {
[%emt 0:00:07]} h5 {[%emt 0:02:47]} 15. a5 {[%emt 0:00:25]} h4 {[%emt 0:00:00]}
16. Nd4 {[%emt 0:00:42]} Rh5 {[%emt 0:00:50]} 17. a6 {[%emt 0:00:00]} Rxe5 {
[%emt 0:00:01]} 18. Bf4 {[%emt 0:00:03]} Rd5 {[%emt 0:00:42]} 19. c4 {[%emt 0:
00:11]} Rd7 {[%emt 0:02:27]} 20. axb7 {[%emt 0:00:00]} Bxb7 {[%emt 0:00:00]}
21. Nf5 {[%emt 0:00:00]} Bf6 {[%emt 0:00:00]} 22. Re1+ {[%emt 0:01:51]} Kf8 {
[%emt 0:00:00]} 23. Be5 {[%emt 0:00:00]} Bxe5 {[%emt 0:00:39]} 24. Rxe5 {
[%emt 0:00:00]} Rd2 {[%emt 0:00:00]} 25. b3 {[%emt 0:02:20]} Rd3 {[%emt 0:01:
42]} 26. Nxh4 {[%emt 0:01:24]} Rxb3 {[%emt 0:00:19]} 27. h3 {[%emt 0:01:03]}
Rb4 {[%emt 0:00:54]} 28. Rh5 {[%emt 0:00:20]} Kg8 {[%emt 0:00:06]} 29. Rc5 {
[%emt 0:00:30]} a5 {[%emt 0:00:15]} 30. Rcxa5 {[%emt 0:00:00]} Rxa5 {[%emt 0:
00:00]} 31. Rxa5 {[%emt 0:00:00]} Rxc4 {[%emt 0:00:00]} 32. Nf5 {[%emt 0:00:14]
} Rb4 {[%emt 0:03:02]} 33. Ra1 {[%emt 0:00:00]} Rb5 {[%emt 0:01:27]} 34. Nd4 {
[%emt 0:00:33]} Rb4 {[%emt 0:00:30]} 35. Nf5 {[%emt 0:00:07]} g6 {[%emt 0:00:
04]} 36. Ne3 {[%emt 0:00:00]} Kf8 {[%emt 0:00:00]} 37. g4 {[%emt 0:01:40]} Ke7
{[%emt 0:00:12]} 38. Kh2 {[%emt 0:00:00]} c5 {[%emt 0:00:00]} 39. Rc1 {[%emt 0:
00:00]} Kd6 {[%emt 0:00:35]} 40. Kg3 {[%emt 0:00:00]} Bd5 {[%emt 0:00:32]} 41.
h4 {[%emt 0:00:14]} Re4 {[%emt 0:01:42]} 42. h5 {[%emt 0:00:53]} gxh5 {[%emt 0:
00:28]} 43. gxh5 {[%emt 0:00:00]} Re6 {[%emt 0:00:05]} 44. Rd1 {[%emt 0:01:30]}
c6 {[%emt 0:00:00]} 45. h6 {[%emt 0:00:00]} Kc7 {[%emt 0:02:12]} 46. Ng4 {
[%emt 0:02:46]} Be4 {[%emt 0:00:00]} 47. Re1 {[%emt 0:00:00]} c4 {[%emt 0:00:
29]} 48. Kf4 {[%emt 0:00:06]} Bg6 {[%emt 0:00:56]} 49. Rxe6 {[%emt 0:00:17]}
fxe6 {[%emt 0:00:00]} 50. Nf6 {[%emt 0:00:09]} Kd6 {[%emt 0:00:24]} 51. Ke3 {
[%emt 0:00:07]} Ke5 {[%emt 0:00:30]} 52. h7 {[%emt 0:01:01]} Bxh7 {[%emt 0:00:
00]} 53. Nxh7 {[%emt 0:00:00]} Kf5 {[%emt 0:00:00]} 54. Nf8 {[%emt 0:00:20]} c3
{[%emt 0:00:00]} 55. Kd3 {[%emt 0:00:30]} Kf4 {[%emt 0:00:00]} 56. Nxe6+ {
[%emt 0:00:00]} Kf3 {[%emt 0:00:00]} 57. Nd4+ {[%emt 0:00:00]} Kxf2 {[%emt 0:
00:00]} 58. Nxc6 {[%emt 0:00:00]} c2 {[%emt 0:00:00]} 59. Kxc2 1/2-1/2

[Event "Paris GCT Rapid"]
[Site "Paris"]
[Date "2017.06.22"]
[Round "6"]
[White "Mamedyarov, Shakhriyar"]
[Black "So, Wesley"]
[Result "1/2-1/2"]
[ECO "D37"]
[WhiteElo "2800"]
[BlackElo "2812"]
[PlyCount "147"]
[EventDate "2017.06.21"]
[EventType "tourn (rapid)"]
[EventRounds "9"]
[EventCountry "FRA"]
[EventCategory "22"]
[SourceTitle "CBM 179"]
[Source "ChessBase"]
[SourceDate "2017.07.12"]
[SourceVersion "1"]
[SourceVersionDate "2017.07.12"]
[SourceQuality "1"]
[TimeControl "1500"]

1. d4 {[%emt 0:00:00]} d5 {[%emt 0:00:00]} 2. c4 {[%emt 0:00:00]} e6 {[%emt 0:
00:00]} 3. Nc3 {[%emt 0:00:00]} Be7 {[%emt 0:00:00]} 4. Nf3 {[%emt 0:00:00]}
Nf6 {[%emt 0:00:00]} 5. Bf4 {[%emt 0:00:00]} O-O {[%emt 0:00:00]} 6. e3 {
[%emt 0:00:00]} Nbd7 {[%emt 0:00:00]} 7. a3 {[%emt 0:00:00]} c5 {[%emt 0:00:00]
} 8. cxd5 {[%emt 0:00:00]} Nxd5 {[%emt 0:00:00]} 9. Nxd5 {[%emt 0:00:00]} exd5
{[%emt 0:00:00]} 10. dxc5 {[%emt 0:00:00]} Nxc5 {[%emt 0:00:00]} 11. Be2 {
[%emt 0:00:05]} Qb6 {[%emt 0:00:00]} 12. Be5 {[%emt 0:00:13]} Nb3 {[%emt 0:00:
09]} 13. Rb1 {[%emt 0:00:03]} Bf5 {[%emt 0:02:06]} 14. Bd3 {[%emt 0:00:00]} Be4
{[%emt 0:00:00]} 15. O-O {[%emt 0:00:08]} Qg6 {[%emt 0:02:37]} 16. Bxe4 {
[%emt 0:04:20]} dxe4 {[%emt 0:00:00]} 17. Qxb3 {[%emt 0:00:00]} exf3 {[%emt 0:
00:00]} 18. Bg3 {[%emt 0:00:00]} fxg2 {[%emt 0:00:15]} 19. Rfd1 {[%emt 0:00:00]
} b6 {[%emt 0:04:23]} 20. Qd3 {[%emt 0:01:35]} Qxd3 {[%emt 0:00:59]} 21. Rxd3 {
[%emt 0:00:00]} Rfd8 {[%emt 0:00:00]} 22. Rbd1 {[%emt 0:00:00]} Rxd3 {[%emt 0:
00:00]} 23. Rxd3 {[%emt 0:00:00]} Rd8 {[%emt 0:00:00]} 24. Rc3 {[%emt 0:01:20]}
Bf6 {[%emt 0:00:07]} 25. Rc7 {[%emt 0:00:00]} a5 {[%emt 0:02:54]} 26. Rb7 {
[%emt 0:01:52]} Bxb2 {[%emt 0:00:58]} 27. Bd6 {[%emt 0:00:01]} h6 {[%emt 0:01:
24]} 28. Rxb6 {[%emt 0:00:00]} Bc3 {[%emt 0:00:49]} 29. Kxg2 {[%emt 0:00:00]}
Rc8 {[%emt 0:00:00]} 30. Kf3 {[%emt 0:00:18]} Rc4 {[%emt 0:00:00]} 31. Rb5 {
[%emt 0:01:16]} Rc6 {[%emt 0:00:17]} 32. Bc5 {[%emt 0:00:33]} Rf6+ {[%emt 0:00:
22]} 33. Ke2 {[%emt 0:00:00]} a4 {[%emt 0:00:56]} 34. Kd3 {[%emt 0:02:23]} Be1
{[%emt 0:00:17]} 35. Ke2 {[%emt 0:00:00]} Bc3 {[%emt 0:00:00]} 36. Kd3 {
[%emt 0:00:40]} Be1 {[%emt 0:00:00]} 37. f4 {[%emt 0:00:00]} Rf5 {[%emt 0:00:
48]} 38. Kc4 {[%emt 0:00:07]} g5 {[%emt 0:00:33]} 39. fxg5 {[%emt 0:05:12]}
Rxg5 {[%emt 0:00:53]} 40. Bd4 {[%emt 0:00:00]} Kh7 {[%emt 0:00:21]} 41. Rb1 {
[%emt 0:01:32]} Ba5 {[%emt 0:00:17]} 42. Rf1 {[%emt 0:00:16]} Kg8 {[%emt 0:00:
00]} 43. Rf6 {[%emt 0:00:29]} Rh5 {[%emt 0:00:00]} 44. Ra6 {[%emt 0:00:00]} Kh7
{[%emt 0:00:00]} 45. Ra8 {[%emt 0:00:27]} Be1 {[%emt 0:00:25]} 46. Rh8+ {
[%emt 0:00:34]} Kg6 {[%emt 0:00:00]} 47. Rg8+ {[%emt 0:00:00]} Kf5 {[%emt 0:00:
00]} 48. Rg1 {[%emt 0:00:11]} Bh4 {[%emt 0:00:08]} 49. Rf1+ {[%emt 0:00:05]}
Ke6 {[%emt 0:00:00]} 50. Kb4 {[%emt 0:00:40]} Be7+ {[%emt 0:00:08]} 51. Kxa4 {
[%emt 0:00:00]} Rxh2 {[%emt 0:00:00]} 52. Kb3 {[%emt 0:00:00]} h5 {[%emt 0:00:
26]} 53. a4 {[%emt 0:00:00]} Bd8 {[%emt 0:00:00]} 54. Ra1 {[%emt 0:00:02]} Ba5
{[%emt 0:00:18]} 55. Kc4 {[%emt 0:00:00]} Rg2 {[%emt 0:00:00]} 56. Rf1 {
[%emt 0:00:05]} Bd8 {[%emt 0:00:00]} 57. Ra1 {[%emt 0:00:07]} Rg5 {[%emt 0:00:
01]} 58. Bc3 {[%emt 0:00:00]} Bb6 {[%emt 0:00:03]} 59. a5 {[%emt 0:00:00]} Rc5+
{[%emt 0:00:40]} 60. Kd3 {[%emt 0:00:00]} Rd5+ {[%emt 0:00:00]} 61. Kc4 {
[%emt 0:00:00]} Rc5+ {[%emt 0:00:01]} 62. Kd3 {[%emt 0:00:00]} Rd5+ {[%emt 0:
00:00]} 63. Ke2 Ba7 64. a6 {[%emt 0:00:07]} Rd7 {[%emt 0:00:07]} 65. Rh1 {
[%emt 0:00:00]} Rd5 {[%emt 0:00:01]} 66. Rf1 {[%emt 0:00:00]} Rb5 {[%emt 0:00:
15]} 67. Rf6+ {[%emt 0:00:00]} Ke7 {[%emt 0:00:00]} 68. Rc6 {[%emt 0:00:00]}
Kd7 {[%emt 0:00:00]} 69. Rf6 {[%emt 0:00:00]} Ke7 {[%emt 0:00:00]} 70. Rh6 {
[%emt 0:00:00]} Rb3 {[%emt 0:00:00]} 71. Bf6+ {[%emt 0:00:06]} Kd7 {[%emt 0:00:
00]} 72. Bg5 {[%emt 0:00:00]} Rb6 {[%emt 0:00:00]} 73. Rxh5 {[%emt 0:00:01]}
Rxa6 74. Bf4 {[%emt 0:00:00]} 1/2-1/2

[Event "Paris GCT Rapid"]
[Site "Paris"]
[Date "2017.06.23"]
[Round "7"]
[White "So, Wesley"]
[Black "Topalov, Veselin"]
[Result "1/2-1/2"]
[ECO "A29"]
[WhiteElo "2812"]
[BlackElo "2749"]
[PlyCount "120"]
[EventDate "2017.06.21"]
[EventType "tourn (rapid)"]
[EventRounds "9"]
[EventCountry "FRA"]
[EventCategory "22"]
[SourceTitle "CBM 179"]
[Source "ChessBase"]
[SourceDate "2017.07.12"]
[SourceVersion "1"]
[SourceVersionDate "2017.07.12"]
[SourceQuality "1"]
[TimeControl "1500"]

1. c4 {[%emt 0:00:00]} e5 {[%emt 0:00:09]} 2. Nc3 {[%emt 0:00:00]} Nf6 {
[%emt 0:00:00]} 3. Nf3 {[%emt 0:00:00]} Nc6 {[%emt 0:00:00]} 4. g3 {[%emt 0:00:
00]} d5 {[%emt 0:00:00]} 5. cxd5 {[%emt 0:00:00]} Nxd5 {[%emt 0:00:00]} 6. Bg2
{[%emt 0:00:00]} Nb6 {[%emt 0:00:00]} 7. O-O {[%emt 0:00:00]} Be7 {[%emt 0:00:
00]} 8. Rb1 {[%emt 0:00:00]} a5 {[%emt 0:00:00]} 9. d3 {[%emt 0:00:00]} Be6 {
[%emt 0:00:01]} 10. Be3 {[%emt 0:00:05]} O-O {[%emt 0:02:11]} 11. d4 {[%emt 0:
01:32]} exd4 {[%emt 0:01:06]} 12. Nxd4 {[%emt 0:00:00]} Nxd4 {[%emt 0:00:00]}
13. Bxd4 {[%emt 0:00:00]} c6 {[%emt 0:00:27]} 14. f4 {[%emt 0:00:00]} f5 {
[%emt 0:02:07]} 15. e4 {[%emt 0:02:10]} Rf7 {[%emt 0:00:00]} 16. Bh3 {[%emt 0:
01:40]} Nc4 {[%emt 0:02:34]} 17. exf5 {[%emt 0:04:24]} Bxf5 {[%emt 0:00:00]}
18. Bxf5 {[%emt 0:00:00]} Rxf5 {[%emt 0:00:00]} 19. Qd3 {[%emt 0:00:21]} Qxd4+
{[%emt 0:00:53]} 20. Qxd4 {[%emt 0:00:00]} Bc5 {[%emt 0:00:00]} 21. Rfd1 {
[%emt 0:00:00]} Bxd4+ {[%emt 0:02:38]} 22. Rxd4 {[%emt 0:00:00]} Ne3 {[%emt 0:
00:00]} 23. Kf2 {[%emt 0:00:57]} Ng4+ {[%emt 0:00:06]} 24. Kg2 {[%emt 0:00:00]}
Re8 {[%emt 0:00:04]} 25. h3 {[%emt 0:00:00]} Nf6 {[%emt 0:00:40]} 26. g4 {
[%emt 0:00:47]} Rc5 {[%emt 0:00:00]} 27. Rbd1 {[%emt 0:00:00]} b5 {[%emt 0:01:
17]} 28. a3 {[%emt 0:00:11]} Re3 {[%emt 0:00:13]} 29. g5 {[%emt 0:01:41]} Nd5 {
[%emt 0:00:19]} 30. Nxd5 {[%emt 0:00:00]} Rxd5 {[%emt 0:00:00]} 31. Rxd5 {
[%emt 0:00:00]} cxd5 {[%emt 0:00:00]} 32. Rxd5 {[%emt 0:00:09]} Re2+ {[%emt 0:
00:00]} 33. Kf3 {[%emt 0:00:00]} Rxb2 {[%emt 0:00:00]} 34. f5 {[%emt 0:00:14]}
Rb3+ {[%emt 0:01:17]} 35. Kg4 {[%emt 0:00:00]} Rxa3 {[%emt 0:00:00]} 36. Rxb5 {
[%emt 0:00:00]} a4 {[%emt 0:00:48]} 37. Ra5 {[%emt 0:01:09]} Ra1 {[%emt 0:00:
00]} 38. g6 {[%emt 0:00:00]} hxg6 {[%emt 0:00:00]} 39. fxg6 {[%emt 0:00:00]}
Kf8 {[%emt 0:00:47]} 40. Ra8+ {[%emt 0:00:01]} Ke7 {[%emt 0:00:00]} 41. Ra7+ {
[%emt 0:00:00]} Kf8 {[%emt 0:00:00]} 42. Ra8+ {[%emt 0:00:39]} Ke7 {[%emt 0:00:
00]} 43. Ra7+ {[%emt 0:00:00]} Kf8 {[%emt 0:00:00]} 44. Kh5 {[%emt 0:00:05]} a3
{[%emt 0:00:33]} 45. Ra8+ {[%emt 0:00:00]} Ke7 {[%emt 0:00:00]} 46. Ra7+ {
[%emt 0:00:01]} Kf8 {[%emt 0:00:00]} 47. Rf7+ {[%emt 0:01:25]} Kg8 {[%emt 0:00:
00]} 48. Rf3 {[%emt 0:00:27]} a2 {[%emt 0:00:40]} 49. Rf2 {[%emt 0:00:00]} Rb1
{[%emt 0:00:00]} 50. Rxa2 {[%emt 0:00:00]} Rb5+ {[%emt 0:00:00]} 51. Kg4 {
[%emt 0:00:00]} Rb4+ {[%emt 0:00:00]} 52. Kg3 {[%emt 0:00:00]} Rb3+ {[%emt 0:
00:00]} 53. Kg4 {[%emt 0:00:04]} Rb4+ {[%emt 0:00:00]} 54. Kf5 {[%emt 0:00:17]}
Rb5+ {[%emt 0:00:00]} 55. Ke4 {[%emt 0:00:00]} Kf8 {[%emt 0:00:00]} 56. Rf2+ {
[%emt 0:00:03]} Ke7 {[%emt 0:00:02]} 57. Rf5 {[%emt 0:00:23]} Rxf5 {[%emt 0:00:
49]} 58. Kxf5 {[%emt 0:00:00]} Kf8 {[%emt 0:00:00]} 59. h4 {[%emt 0:00:10]} Kg8
{[%emt 0:00:00]} 60. h5 {[%emt 0:00:00]} Kh8 {[%emt 0:00:00]} 1/2-1/2

[Event "Paris GCT Rapid"]
[Site "Paris"]
[Date "2017.06.23"]
[Round "8"]
[White "Nakamura, Hikaru"]
[Black "So, Wesley"]
[Result "1/2-1/2"]
[ECO "A07"]
[WhiteElo "2785"]
[BlackElo "2812"]
[PlyCount "104"]
[EventDate "2017.06.21"]
[EventType "tourn (rapid)"]
[EventRounds "9"]
[EventCountry "FRA"]
[EventCategory "22"]
[SourceTitle "CBM 179"]
[Source "ChessBase"]
[SourceDate "2017.07.12"]
[SourceVersion "1"]
[SourceVersionDate "2017.07.12"]
[SourceQuality "1"]
[TimeControl "1500"]

1. b3 {[%emt 0:00:00]} d5 {[%emt 0:00:03]} 2. Bb2 {[%emt 0:00:00]} Bf5 {
[%emt 0:00:00]} 3. Nf3 {[%emt 0:00:00]} e6 {[%emt 0:00:00]} 4. g3 {[%emt 0:00:
04]} Nf6 {[%emt 0:00:00]} 5. Bg2 {[%emt 0:00:00]} Be7 {[%emt 0:00:54]} 6. Nh4 {
[%emt 0:00:12]} Be4 {[%emt 0:00:00]} 7. f3 {[%emt 0:00:00]} Bg6 {[%emt 0:00:00]
} 8. Nxg6 hxg6 {[%emt 0:00:00]} 9. e4 {[%emt 0:00:29]} g5 {[%emt 0:01:43]} 10.
Qe2 {[%emt 0:01:43]} Nc6 {[%emt 0:00:49]} 11. e5 {[%emt 0:00:06]} Nh7 {[%emt 0:
00:23]} 12. d4 {[%emt 0:00:00]} Qd7 {[%emt 0:00:00]} 13. c3 {[%emt 0:00:19]} f6
{[%emt 0:05:04]} 14. exf6 {[%emt 0:02:00]} Bxf6 {[%emt 0:00:00]} 15. Bh3 {
[%emt 0:00:28]} Nf8 {[%emt 0:04:00]} 16. Bg4 {[%emt 0:00:00]} Kf7 {[%emt 0:01:
56]} 17. O-O {[%emt 0:01:36]} Ng6 {[%emt 0:00:06]} 18. Na3 {[%emt 0:00:11]}
Nce7 {[%emt 0:01:27]} 19. Rae1 {[%emt 0:00:32]} Nf5 {[%emt 0:00:00]} 20. Nc2 {
[%emt 0:00:04]} Rh6 {[%emt 0:00:18]} 21. Rf2 {[%emt 0:00:00]} Rah8 {[%emt 0:00:
06]} 22. Rg2 {[%emt 0:00:00]} b6 {[%emt 0:00:50]} 23. Ne3 {[%emt 0:00:14]} c5 {
[%emt 0:00:15]} 24. dxc5 {[%emt 0:03:02]} bxc5 {[%emt 0:00:00]} 25. Bxf5 {
[%emt 0:00:20]} exf5 {[%emt 0:00:00]} 26. Rd1 {[%emt 0:00:00]} Ne7 27. Ba3 {
[%emt 0:03:29]} Rc8 {[%emt 0:00:37]} 28. Qd3 {[%emt 0:00:00]} d4 {[%emt 0:01:
06]} 29. cxd4 {[%emt 0:00:00]} Bxd4 {[%emt 0:00:00]} 30. Bxc5 {[%emt 0:00:00]}
Rxc5 {[%emt 0:00:17]} 31. Qxd4 {[%emt 0:00:00]} Qxd4 {[%emt 0:00:10]} 32. Rxd4
{[%emt 0:00:00]} Rc1+ {[%emt 0:00:00]} 33. Rd1 {[%emt 0:01:27]} Rxd1+ {[%emt 0:
00:00]} 34. Nxd1 {[%emt 0:00:00]} Rd6 {[%emt 0:00:00]} 35. Nb2 {[%emt 0:01:30]}
Nc6 {[%emt 0:00:00]} 36. Rc2 {[%emt 0:00:16]} Nd4 {[%emt 0:00:03]} 37. Rc7+ {
[%emt 0:00:00]} Kf6 {[%emt 0:00:00]} 38. Rxa7 {[%emt 0:01:08]} Nxf3+ {[%emt 0:
00:01]} 39. Kf2 {[%emt 0:00:00]} Nxh2 {[%emt 0:00:14]} 40. Nc4 {[%emt 0:00:08]}
Ng4+ {[%emt 0:00:00]} 41. Kf1 {[%emt 0:01:07]} Re6 {[%emt 0:00:39]} 42. a4 {
[%emt 0:00:18]} f4 {[%emt 0:00:09]} 43. gxf4 {[%emt 0:00:41]} gxf4 {[%emt 0:00:
00]} 44. Rd7 {[%emt 0:00:00]} g5 {[%emt 0:00:45]} 45. Rd6 {[%emt 0:00:47]} Ne3+
{[%emt 0:00:28]} 46. Ke2 {[%emt 0:00:21]} Nxc4+ {[%emt 0:00:09]} 47. Rxe6+ {
[%emt 0:00:00]} Kxe6 {[%emt 0:00:00]} 48. bxc4 {[%emt 0:00:00]} Kd6 {[%emt 0:
00:00]} 49. Kf3 {[%emt 0:00:00]} Kc6 {[%emt 0:00:00]} 50. a5 {[%emt 0:00:00]}
Kc5 {[%emt 0:00:00]} 51. Kg4 {[%emt 0:00:00]} Kc6 {[%emt 0:00:00]} 52. Kf3 {
[%emt 0:00:00]} Kc5 {[%emt 0:00:00]} 1/2-1/2